[Event "2nd Serbia Open Masters 2022"]
[Site "Novi Sad"]
[Date "2022.06.29"]
[Round "2.43"]
[White "Nogerbek, Kazybek"]
[Black "Tyurin, Artem"]
[Result "1-0"]
[ECO "E04"]
[WhiteElo "2424"]
[BlackElo "2174"]
[Annotator "TA"]
[PlyCount "97"]
[EventDate "2022.06.28"]
[EventType "swiss"]
[EventCountry "SRB"]
[SourceTitle "playchess.com"]
[Source "ChessBase"]
[SourceQuality "1"]
[TimeControl "40/5400+30:900+30"]

{[%evp 17,97,0,0,0,56,56,56,56,50,0,0,0,0,0,0,0,0,-6,0,0,0,0,17,13,14,14,10,5,50,50,50,50,50,50,50,50,50,50,68,50,50,50,50,68,75,75,150,75,257,254,409,255,357,255,357,357,420,420,430,430,10958,9708,12850,9825,11743,12551,9264,0,0,0,6185,4706,1591,3164,5691,8,29959,4705,29970,29968,29965,4614]} 1. d4 {[%emt 0:01:10]} Nf6 {[%emt 0:01:12]} 2. Nf3 {[%emt 0:00:13]} d5 {[%emt 0:00:04][%cal Bd7d5,Bd5c4][%mdl 32]} 3. c4 {[%emt 0:00:10]} e6 {[%emt 0:00:06]} 4. g3 {[%emt 0:00:10]} dxc4 {[%emt 0:00:23]} 5. Bg2 {[%emt 0:00:59]} c5 {[%emt 0:00:43]} 6. O-O {[%emt 0:00:14]} Nc6 {[%emt 0:00:06]} 7. Ne5 {[%emt 0:00:10]} Bd7 {[%emt 0:00:10]} 8. Na3 {[%emt 0:00:31]} cxd4 {[%emt 0:01:48]} 9. Naxc4 {[%emt 0:00:17]} Rc8 {[%emt 0:01:48] 9...Be7 is the modern continuation.} 10. Bf4 {[%emt 0:03:54] is the legacy move (10.Qb3). E04: Open Catalan: 5 Nf3.} Nd5 {[%emt 0:14:56]} (10... Be7 $11) 11. Nxc6 $14 {[%emt 0:04:02]} Bxc6 {[%emt 0:02:07]} 12. Qxd4 {[%emt 0:02:19] White is slightly better.} Nxf4 {[%emt 0:03:58]} 13. Bxc6+ {[%emt 0:00:35]} ({White should play} 13. Qxf4 $14 Bb5 14. Rac1 Rxc4 15. Rxc4) 13... Rxc6 $11 {[%emt 0:01:02]} 14. Qxf4 {[%emt 0:00:13]} Qc7 {[%emt 0:02:50]} 15. Rac1 {[%emt 0:04:42] [#]} ({Don't go for} 15. Ne5 $2 Bd6 16. Qxf7+ Qxf7 $19) 15... Bc5 $146 {[%emt 0:17:59]} ({Predecessor:} 15... Qxf4 16. gxf4 Rc7 17. Ne5 Bd6 18. Rxc7 Bxc7 19. Rc1 Bd8 20. Rc8 f6 21. Nd3 b6 {½-½ (76) Vijayalakshmi,S (2412)-Inkiov,V (2474) Marseille 2005}) 16. Rfd1 {[%emt 0:15:57] Ne5 is the strong threat.} O-O {[%emt 0:08:06]} 17. Kg2 {[%emt 0:02:38]} Qxf4 {[%emt 0:05:46]} 18. gxf4 {[%emt 0:02:45]} Rc7 {[%emt 0:00:16]} 19. Na5 {[%emt 0:05:08]} b6 {[%emt 0:01:24]} 20. b4 {[%emt 0:02:03] And now Nb3 would win.} Rfc8 {[%emt 0:04:22]} 21. bxc5 {[%emt 0:07:54]} bxa5 {[%emt 0:00:05][%mdl 4096] Endgame KRR-KRR} 22. Rc3 {[%emt 0:00:25]} g5 {[%emt 0:05:54]} 23. fxg5 {[%emt 0:02:00]} Rxc5 {[%emt 0:01:01] [#]} 24. Rd8+ $1 {[%emt 0:00:07]} Rxd8 {[%emt 0:00:05]} 25. Rxc5 $14 {[%emt 0:00:06] KR-KR} Rd2 {[%emt 0:01:01]} 26. Rxa5 {[%emt 0:01:11]} Rxe2 {[%emt 0:00:10]} 27. Rxa7 {[%emt 0:00:33]} Kg7 {[%emt 0:00:16]} 28. a4 {[%emt 0:00:58][%cal Ba2a4,Ba4a5,Ba5a6][%mdl 32]} Kg6 {[%emt 0:08:48]} 29. h4 {[%emt 0:01:15]} Ra2 {[%emt 0:01:26]} 30. a5 {[%emt 0:02:32]} Ra4 {[%emt 0:02:50]} 31. Kg3 {[%emt 0:01:23] aiming for f4.} Ra3+ {[%emt 0:06:01]} (31... f6 $142) 32. f3 {[%emt 0:05:26]} (32. Kg4 $142 $1) 32... Ra4 $2 {[%emt 0:06:24]} (32... f6 $16) 33. a6 {[%emt 0:01:11]} h5 $2 {[%emt 0:03:53]} (33... h6 34. gxh6 Kxh6) 34. gxh6 {[%emt 0:01:31]} Kxh6 {[%emt 0:00:00]} 35. Ra8 {[%emt 0:00:13]} ({Weaker is} 35. Rxf7 Rxa6 36. Rf4 Kg7 $16) 35... Kg7 {[%emt 0:00:00]} 36. f4 {[%emt 0:01:30][%cal Bf3f4,Bf4e5][%mdl 32]} Ra3+ {[%emt 0:00:00]} 37. Kf2 {[%emt 0:00:18]} Ra4 {[%emt 0:00:00]} 38. Ke3 {[%emt 0:00:09]} e5 {[%emt 0:01:46]} (38... Ra5 $142 39. Kd4 f6) 39. fxe5 $18 {[%emt 0:02:05] White threatens a7 and mate.} Rxh4 {[%emt 0:00:03]} 40. Rb8 {[%emt 0:00:00] Threatening mate with a7.} Ra4 {[%emt 0:00:00] [#]} 41. Rb6 $1 {[%emt 0:01:18]} Kf8 {[%emt 0:08:44]} 42. Rb8+ $2 {[%emt 0:03:05]} (42. Kd3 $18 Ke7 43. Kc3) 42... Kg7 $11 {[%emt 0:01:36]} 43. Rb6 $2 {[%emt 0:00:51][%mdl 8192]} (43. e6 $11 Rxa6 44. exf7 Kxf7 45. Kd4) 43... Kf8 $18 {[%emt 0:00:01]} 44. Kd3 {[%emt 0:01:03]} Ke7 {[%emt 0:00:54]} 45. Rd6 {[%emt 0:00:32]} Ra3+ {[%emt 0:05:55] [#]} 46. Kc4 $2 {[%emt 0:00:36]} (46. Ke4 $1 $18 {Hoping for Kd5.} Ke8 47. Kf4) 46... Ra5 $2 {[%emt 0:00:03][%mdl 8192]} (46... f5 $11) 47. Kd4 {[%emt 0:05:13]} (47. Kb4 $142 Ra2 48. Kc5 Ra5+ 49. Kb6 Rxe5 50. a7 Kxd6 51. a8=Q Rf5 52. Qa3+ Ke6 53. Qh3) 47... Rb5 {[%emt 0:01:10]} 48. Rd5 {[%emt 0:01:20]} Rb4+ {[%emt 0:00:17]} 49. Kc5 {[%emt 0:00:10] Weighted Error Value: White=0.51/Black=0.65} 1-0

[Event "2nd Serbia Open Masters 2022"]
[Site "Novi Sad"]
[Date "2022.06.29"]
[Round "2.44"]
[White "Makridis, Dimitrios"]
[Black "Radovanovic, Nikola"]
[Result "1-0"]
[ECO "B90"]
[WhiteElo "2082"]
[BlackElo "2423"]
[Annotator "TA"]
[PlyCount "73"]
[EventDate "2022.06.28"]
[EventType "swiss"]
[EventCountry "SRB"]
[SourceTitle "playchess.com"]
[Source "ChessBase"]
[SourceQuality "1"]
[TimeControl "40/5400+30:900+30"]

{[%evp 13,73,11,25,0,0,0,0,4,0,0,0,0,0,0,0,2,0,0,0,0,0,0,0,0,0,0,0,0,0,-10,0,-33,0,-17,83,84,28,45,184,185,177,38,37,45,574,567,562,560,527,558,551,539,489,489,1008,942,942,942,920,908,744,739]} 1. e4 {[%emt 0:00:08]} c5 {[%emt 0:00:07]} 2. Nf3 {[%emt 0:00:07]} d6 {[%emt 0:00:07]} 3. d4 {[%emt 0:00:08]} cxd4 {[%emt 0:00:10]} 4. Nxd4 {[%emt 0:00:04]} Nf6 {[%emt 0:00:07]} 5. Nc3 {[%emt 0:00:04]} a6 {[%emt 0:00:08]} 6. h3 {[%emt 0:00:16]} e5 {[%emt 0:00:39]} 7. Nde2 {[%emt 0:00:29]} b5 {[%emt 0:00:07][%cal Bb7b5,Bb5b4][%mdl 32]} 8. g4 {[%emt 0:06:16] 8.Ng3 is the modern continuation. B90: Sicilian Najdorf: Unusual White 6th moves, 6 Be3 Ng4 and 6 Be3 e5.} b4 {[%emt 0:00:42]} 9. Nd5 {[%emt 0:00:13]} Nxd5 $1 {[%emt 0:00:09]} 10. exd5 {[%emt 0:01:33] The position is equal.} h5 {[%emt 0:00:16]} 11. g5 {[%emt 0:06:11]} h4 {[%emt 0:01:55] [#]} 12. Bg2 $146 {[%emt 0:05:48]} ({Predecessor:} 12. a3 bxa3 13. Rxa3 Nd7 14. Be3 Rb8 15. b3 f5 16. gxf6 Nxf6 17. Nc3 Be7 18. Bxa6 {1-0 (31) Nepomniachtchi,I (2751)-Salinas Herrera,P (2453) Chess.com INT 2018}) 12... Be7 {[%emt 0:03:21]} 13. f4 {[%emt 0:02:12] aiming for fxe5.} Nd7 {[%emt 0:04:47]} 14. O-O {[%emt 0:17:06]} a5 {[%emt 0:09:02]} 15. fxe5 {[%emt 0:11:06]} Nxe5 {[%emt 0:01:09]} 16. Nd4 {[%emt 0:01:09]} Bxg5 {[%emt 0:09:36]} 17. Nc6 $1 {[%emt 0:01:50]} Qb6+ {[%emt 0:02:57]} 18. Kh1 {[%emt 0:01:03]} Bxc1 {[%emt 0:01:34]} 19. Rxc1 {[%emt 0:03:46]} Bd7 {[%emt 0:09:55]} 20. c4 {[%emt 0:08:40][%cal Oc4c5]} Qc5 {[%emt 0:18:22][%cal Re5c6]} 21. Qe1 {[%emt 0:10:30]} f6 {[%emt 0:08:59]} 22. Qe4 {[%emt 0:03:14] Hoping for Nxe5.} Rh6 {[%emt 0:05:34]} (22... O-O $5 {[%cal Ra8e8]}) 23. Nd4 {[%emt 0:03:13]} a4 {[%emt 0:02:08]} (23... Kf8 $11) 24. Ne6 $16 {[%emt 0:01:45] White is more active.} Bxe6 {[%emt 0:03:25]} 25. dxe6 {[%emt 0:00:01]} Ra5 {[%emt 0:09:20]} ({Black should play} 25... Rc8 $14) 26. Rfd1 {[%emt 0:02:43] And now Qb7 would win.} Qc7 {[%emt 0:00:58] [#]} 27. c5 {[%emt 0:06:43]} (27. Rd4 $1 $18) 27... Rxc5 $14 {[%emt 0:01:23]} 28. Rxc5 {[%emt 0:01:52]} dxc5 {[%emt 0:03:44][%mdl 8192]} (28... Qxc5 $14 29. Qa8+ Ke7) 29. Qa8+ $18 {[%emt 0:00:38] White is clearly winning.} Ke7 {[%emt 0:00:07]} 30. Qg8 {[%emt 0:00:11]} Rg6 {[%emt 0:00:27] [#]} 31. Rd7+ $1 {[%emt 0:01:16][%mdl 576] Deflection, Promotion} Nxd7 {[%emt 0:00:21]} 32. Qf7+ {[%emt 0:00:03]} Kd6 {[%emt 0:00:19]} 33. e7 {[%emt 0:00:13][%cal Be6e7,Be7e8,Be8c7,Bc7d5][%mdl 32]} Rxg2 {[%emt 0:02:09]} (33... Qb8 $142 34. e8=Q Qxe8 35. Qxe8 Rg3) 34. e8=N+ {[%emt 0:00:32]} Kc6 {[%emt 0:00:14]} 35. Qe6+ {[%emt 0:00:23]} Kb7 {[%emt 0:00:13]} 36. Nxc7 {[%emt 0:00:07]} Rd2 {[%emt 0:00:29]} 37. Nd5 {[%emt 0:00:12] Weighted Error Value: White=0.13 (very precise) /Black=0.36} 1-0

[Event "2nd Serbia Open Masters 2022"]
[Site "Novi Sad"]
[Date "2022.06.29"]
[Round "2.45"]
[White "Kilic, Eray"]
[Black "Tancsa, Tamas"]
[Result "1/2-1/2"]
[ECO "C88"]
[WhiteElo "2192"]
[BlackElo "2091"]
[Annotator "NA RC"]
[PlyCount "78"]
[EventDate "2022.06.28"]
[EventType "swiss"]
[EventCountry "SRB"]
[SourceTitle "playchess.com"]
[Source "ChessBase"]
[SourceQuality "1"]
[TimeControl "40/5400+30:900+30"]

1. e4 {[%emt 0:00:02]} e5 {[%emt 0:02:16]} 2. Nf3 {[%emt 0:00:06]} Nc6 {[%emt 0:00:17]} 3. Bb5 {[%emt 0:00:05]} a6 {[%emt 0:00:09]} 4. Ba4 {[%emt 0:00:05]} Nf6 {[%emt 0:00:19]} 5. O-O {[%emt 0:00:09]} Be7 {[%emt 0:00:27]} 6. Re1 {[%emt 0:00:07]} b5 {[%emt 0:00:34]} 7. Bb3 {[%emt 0:00:06]} O-O {[%emt 0:00:16]} 8. a4 {[%emt 0:00:07]} b4 {[%emt 0:00:07]} 9. a5 {[%emt 0:00:05]} d6 {[%emt 0:04:05]} 10. d3 {[%emt 0:02:16]} Be6 {[%emt 0:02:54]} 11. Nbd2 {[%emt 0:00:22]} Bxb3 {[%emt 0:05:35]} 12. Nxb3 {[%emt 0:01:29]} d5 {[%emt 0:01:01]} 13. Bg5 {[%emt 0:08:26]} h6 {[%emt 0:17:21]} 14. Bh4 {[%emt 0:08:31]} dxe4 {[%emt 0:09:26]} 15. Bxf6 {[%emt 0:03:18]} Bxf6 {[%emt 0:02:30]} 16. dxe4 {[%emt 0:00:36]} Qxd1 {[%emt 0:01:59]} 17. Raxd1 {[%emt 0:00:28]} Rfd8 {[%emt 0:02:24]} 18. Nfd2 {[%emt 0:09:33]} Nd4 {[%emt 0:05:31]} 19. Nxd4 {[%emt 0:10:33]} Rxd4 {[%emt 0:02:48]} 20. Nf1 {[%emt 0:02:34]} Rad8 {[%emt 0:01:14]} 21. Rxd4 {[%emt 0:09:04]} Rxd4 {[%emt 0:00:23]} 22. b3 {[%emt 0:01:25]} c6 {[%emt 0:03:07]} 23. f3 {[%emt 0:19:04]} Bd8 {[%emt 0:02:06]} 24. Ra1 {[%emt 0:00:26]} f5 {[%emt 0:06:16]} 25. exf5 {[%emt 0:03:40]} e4 {[%emt 0:04:37]} 26. fxe4 {[%emt 0:04:27]} Rxe4 {[%emt 0:00:20]} 27. Nd2 {[%emt 0:05:17]} Re2 {[%emt 0:02:05]} 28. Nc4 {[%emt 0:02:14]} Rxc2 {[%emt 0:01:05]} 29. Re1 {[%emt 0:01:04]} Bf6 {[%emt 0:01:02]} 30. Re8+ {[%emt 0:00:44]} Kh7 {[%emt 0:00:11]} 31. Nd6 {[%emt 0:09:37]} Rc5 {[%emt 0:03:43]} 32. g4 {[%emt 0:00:00]} Rxa5 {[%emt 0:01:14]} 33. Rc8 {[%emt 0:00:00]} h5 {[%emt 0:02:14]} 34. Nf7 {[%emt 0:00:00]} g6 {[%emt 0:00:24]} 35. Rxc6 {[%emt 0:00:00]} Kg7 {[%emt 0:05:36]} 36. Rc7 {[%emt 0:00:00]} hxg4 {[%emt 0:01:05]} 37. Ne5+ {[%emt 0:00:42]} Kh6 {[%emt 0:00:21]} 38. Nxg4+ {[%emt 0:00:17]} Kg5 {[%emt 0:00:04]} 39. Nxf6 {[%emt 0:00:40]} Kxf6 {[%emt 0:00:09]} 1/2-1/2

[Event "2nd Serbia Open Masters 2022"]
[Site "Novi Sad"]
[Date "2022.06.29"]
[Round "2.46"]
[White "Ram Aravind L N"]
[Black "Salimova, Nurgyul"]
[Result "1/2-1/2"]
[ECO "C72"]
[WhiteElo "2116"]
[BlackElo "2418"]
[Annotator "TA"]
[PlyCount "225"]
[EventDate "2022.06.28"]
[EventType "swiss"]
[EventCountry "SRB"]
[SourceTitle "playchess.com"]
[Source "ChessBase"]
[SourceQuality "1"]
[TimeControl "40/5400+30:900+30"]

{[%evp 13,225,12,42,37,39,20,26,17,19,25,21,31,44,4,11,12,7,19,6,6,12,16,5,12,34,23,19,25,78,87,97,104,115,81,177,195,234,233,227,220,324,320,356,374,350,210,201,207,206,200,205,215,231,205,239,239,226,205,239,205,205,205,205,205,205,204,204,193,189,186,182,133,169,131,189,193,206,139,388,20,388,264,257,250,250,250,391,313,388,436,390,388,464,445,606,588,456,395,388,352,381,376,366,366,332,332,318,199,445,445,445,445,335,182,182,101,101,51,124,14,51,51,51,51,51,51,51,51,51,20,20,12,12,12,12,12,12,12,12,12,16,16,15,12,12,12,20,20,32,32,4558,4558,4558,4558,4558,4558,4558,4558,4558,4558,4558,4558,4558,4558,4558,4558,4558,4558,4558,4558,4558,4558,4558,4558,4558,4558,4558,40,4558,4558,4558,4558,4558,4558,4558,36,4558,4558,4558,4558,4558,4558,4558,4558,4558,4558,4558,4558,4558,0,4558,0,4558,4558,3981,4558,4558,4558,4557,2513,2513,3981,4574,4575]} 1. e4 {[%emt 0:00:08]} e5 {[%emt 0:11:27]} 2. Nf3 {[%emt 0:00:09]} Nc6 {[%emt 0:00:14]} 3. Bb5 {[%emt 0:00:07]} a6 {[%emt 0:00:06]} 4. Ba4 {[%emt 0:00:07]} g6 {[%emt 0:00:06]} 5. O-O {[%emt 0:00:13]} Bg7 {[%emt 0:00:35]} 6. c3 {[%emt 0:00:08]} d6 {[%emt 0:00:15]} 7. Re1 {[%emt 0:01:26]} Bd7 {[%emt 0:08:36]} (7... g5 {looks sharper.} 8. g3 Bg4 9. d4 b5) 8. d3 {[%emt 0:02:32] C72: Ruy Lopez: Deferred Steinitz: 5 0-0.} Nge7 {[%emt 0:01:06]} 9. Nbd2 {[%emt 0:02:33]} O-O {[%emt 0:01:11]} 10. Nf1 {[%emt 0:02:18] White has an edge.} h6 {[%emt 0:06:00]} 11. Ng3 {[%emt 0:05:48]} f5 {[%emt 0:10:36]} 12. exf5 {[%emt 0:00:39]} Nxf5 {[%emt 0:00:50]} 13. d4 {[%emt 0:08:52]} (13. Qb3+ {keeps more tension.} Rf7 14. Qxb7 Rb8 15. Qxa6 Ra8 16. Qc4) 13... exd4 {[%emt 0:05:45]} 14. Nxf5 {[%emt 0:01:38]} Bxf5 {[%emt 0:01:27]} 15. Bxc6 {[%emt 0:02:19]} bxc6 {[%emt 0:00:08]} 16. Nxd4 {[%emt 0:00:17]} Qd7 {[%emt 0:01:55] [#]} 17. Be3 $146 {[%emt 0:04:46]} ({Predecessor:} 17. Nxf5 Qxf5 18. Be3 Rab8 19. Re2 c5 20. Qd2 Kh7 21. Rae1 Rf7 22. f3 Bf6 23. Bf2 {1-0 (56) Salishchev,Y (2302)-Kutsebeshchenko,D (2160) Korolev 2002}) 17... c5 {[%emt 0:04:21]} 18. Nxf5 {[%emt 0:04:16]} Qxf5 {[%emt 0:00:17]} 19. Rc1 {[%emt 0:00:56]} Rae8 {[%emt 0:01:15]} 20. Qa4 {[%emt 0:15:40]} Re4 {[%emt 0:14:21]} (20... Qd5 $11 {remains equal.}) 21. Qxa6 $16 {[%emt 0:04:41]} Be5 {[%emt 0:00:20]} 22. Qc6 {[%emt 0:12:09]} h5 {[%emt 0:12:07]} (22... Rxe3 $2 23. fxe3 Qf2+ 24. Kh1 $18) 23. Rf1 {[%emt 0:13:08]} h4 {[%emt 0:01:53]} (23... Bf4 $16 24. Bxf4 Qxf4) 24. h3 $1 $18 {[%emt 0:01:48]} (24. Qxc7 h3 25. f4 Bxf4 $19) 24... Kh7 {[%emt 0:08:39]} 25. Qxc7+ {[%emt 0:01:39]} Rf7 {[%emt 0:00:06]} 26. Qc6 {[%emt 0:00:19]} g5 {[%emt 0:02:36] [#]} (26... Bf4 {might work better.} 27. Qb5 g5) 27. Bxg5 $1 {[%emt 0:15:24][%mdl 512]} Rf4 {[%emt 0:05:30]} (27... Rc4 28. Be3) 28. Bxf4 {[%emt 0:00:00]} Qxf4 {[%emt 0:00:01][%csl Ge5][%cal Rf4h2]} 29. g3 {[%emt 0:00:00]} hxg3 {[%emt 0:00:14]} 30. fxg3 {[%emt 0:00:00]} Qxg3+ {[%emt 0:00:12]} 31. Qg2 {[%emt 0:00:00]} Qe3+ {[%emt 0:00:12]} (31... Rxf1+ $2 32. Rxf1 d5 33. a4 $18) 32. Kh1 {[%emt 0:00:00]} Rg7 {[%emt 0:00:32]} 33. Rce1 {[%emt 0:00:00]} Rxg2 {[%emt 0:02:40][%cal Re3h3]} 34. Rxe3 {[%emt 0:00:00]} Rxb2 {[%emt 0:00:15][%mdl 4096] Endgame KRR-KRB} 35. a3 {[%emt 0:00:00]} Rh2+ {[%emt 0:01:01]} 36. Kg1 {[%emt 0:00:00]} Ra2 {[%emt 0:00:09]} 37. Rf2 {[%emt 0:00:01]} Rxa3 {[%emt 0:00:13]} 38. Rff3 {[%emt 0:00:05]} Kh6 {[%emt 0:01:12]} 39. Kg2 {[%emt 0:00:12]} Ra2+ {[%emt 0:00:22]} 40. Rf2 {[%emt 0:00:00]} Ra3 {[%emt 0:00:00]} 41. Rc2 {[%emt 0:00:35]} Kg5 {[%emt 0:01:15]} 42. Kf3 {[%emt 0:00:23]} ({White should play} 42. Rf3 $18) 42... Kf5 {[%emt 0:00:15]} 43. c4 {[%emt 0:01:01]} Ra1 {[%emt 0:00:21]} (43... Ra8 $16 44. Rf2 Ra1 45. Kg2+ Kg5) 44. Kg2 $1 {[%emt 0:01:25]} Kf4 {[%emt 0:02:58]} 45. Rce2 {[%emt 0:00:47]} Rc1 $2 {[%emt 0:00:42]} (45... Bd4 $16 46. Rf3+ Kg5) 46. Rf3+ $1 {[%emt 0:02:43]} Kg5 {[%emt 0:00:05]} 47. Re4 {[%emt 0:00:08] Rf1 is the strong threat.} Rc2+ {[%emt 0:01:47]} 48. Rf2 {[%emt 0:00:18]} Rc3 {[%emt 0:00:33]} 49. Rg4+ {[%emt 0:00:04]} Kh6 {[%emt 0:00:17]} 50. Rf5 {[%emt 0:01:14]} Bd4 {[%emt 0:01:18]} 51. h4 {[%emt 0:06:54]} Rc2+ {[%emt 0:04:02]} 52. Kf3 {[%emt 0:02:12]} Rxc4 {[%emt 0:00:45]} 53. h5 $1 {[%emt 0:00:05]} Rc3+ {[%emt 0:00:20]} 54. Kg2 {[%emt 0:00:21]} Rc2+ {[%emt 0:01:56]} 55. Kg3 {[%emt 0:00:16] aiming for Rg6+.} Be5+ {[%emt 0:00:10]} 56. Kf3 {[%emt 0:00:12] Black must now prevent Rg6+.} Rc3+ {[%emt 0:00:19]} 57. Kg2 {[%emt 0:00:31]} Rc2+ {[%emt 0:00:33]} 58. Kf1 {[%emt 0:00:15] And now Rg6+ would win.} Rc1+ {[%emt 0:01:09]} 59. Ke2 {[%emt 0:00:20] Hoping for Rg6+.} Rc2+ {[%emt 0:00:19]} 60. Kd1 {[%emt 0:00:27]} Rh2 $2 {[%emt 0:01:11]} (60... Ra2 61. Rg6+ Kh7 62. Rf7+ Kh8) 61. Rg6+ {[%emt 0:00:03]} Kh7 {[%emt 0:00:04][%cal Oh2h5]} 62. Rf7+ {[%emt 0:00:25]} Kh8 {[%emt 0:00:08]} 63. h6 {[%emt 0:01:15]} (63. Re6 $142 {[%cal Re6e8]} Rh1+ 64. Ke2) 63... Ra2 {[%emt 0:02:24]} 64. h7 {[%emt 0:02:32]} (64. Re6 $18 {[%cal Re6e8]} Ra8 65. Rc7) 64... Ra8 $16 {[%emt 0:00:06]} 65. Rg4 {[%emt 0:02:44]} (65. Rd7 $16) 65... Rc8 {[%emt 0:00:45]} (65... Ra1+ $14 66. Kc2 Ra2+ 67. Kb3 Rb2+ 68. Ka3 Rb8) 66. Rf5 {[%emt 0:02:57]} (66. Rd7 $1 $16) 66... Bg7 {[%emt 0:01:30]} 67. Rfg5 {[%emt 0:02:13]} Rc7 {[%emt 0:00:06]} 68. Rh5 {[%emt 0:00:04]} c4 {[%emt 0:01:32]} 69. Rg6 {[%emt 0:00:06]} Rd7 {[%emt 0:00:58]} 70. Re6 {[%emt 0:00:28]} Rd8 {[%emt 0:00:15] Prevents Re8+.} 71. Rd5 {[%emt 0:00:39]} Kxh7 {[%emt 0:00:58]} 72. Rexd6 {[%emt 0:00:35]} Rxd6 {[%emt 0:00:07]} 73. Rxd6 $11 {[%emt 0:00:02] KR-KB} c3 {[%emt 0:00:17]} 74. Rc6 {[%emt 0:00:03]} Kg8 {[%emt 0:01:02]} 75. Ke2 {[%emt 0:00:02]} Kf7 {[%emt 0:00:08]} 76. Kd3 {[%emt 0:00:01]} Ke8 {[%emt 0:01:59]} 77. Ke4 {[%emt 0:00:49]} Kd7 {[%emt 0:01:13]} 78. Kd5 {[%emt 0:00:01]} Be5 {[%emt 0:00:45]} 79. Ra6 {[%emt 0:00:38]} Bc7 {[%emt 0:00:26]} 80. Ra3 {[%emt 0:00:17]} Kc8 {[%emt 0:00:21]} (80... c2 {is interesting.} 81. Rc3 Bb8 82. Rxc2 Ke7) 81. Rxc3 {[%emt 0:00:45] Intending Kc6 and mate.} Kb7 $2 {[%emt 0:00:05][%mdl 8192] Black is on the road to losing.} (81... Kd8 $14) 82. Rb3+ $1 $18 {[%emt 0:00:04]} Ka8 {[%emt 0:00:38]} 83. Kc6 {[%emt 0:00:05]} Bb8 {[%emt 0:00:40]} 84. Ra3+ {[%emt 0:00:42]} Ba7 {[%emt 0:00:01]} 85. Ra1 {[%emt 0:00:07]} Kb8 {[%emt 0:00:03]} 86. Rb1+ {[%emt 0:00:03]} Ka8 {[%emt 0:00:22]} 87. Kc7 {[%emt 0:00:02]} Bd4 {[%emt 0:00:56]} 88. Rb8+ {[%emt 0:01:00]} Ka7 {[%emt 0:00:01]} 89. Rb5 {[%emt 0:00:23][%cal Rb5a5]} Ka8 {[%emt 0:00:50]} 90. Rf5 {[%emt 0:00:37]} Bg1 {[%emt 0:01:31]} 91. Rf8+ {[%emt 0:00:38]} Ka7 {[%emt 0:00:01]} 92. Rf1 {[%emt 0:00:01][%cal Rf1a1]} Bh2+ {[%emt 0:01:25]} 93. Kc6 {[%emt 0:00:01]} Be5 {[%emt 0:00:35]} 94. Rf5 {[%emt 0:00:08]} Bg3 {[%emt 0:00:39] [#]} 95. Ra5+ $1 {[%emt 0:00:54]} Kb8 {[%emt 0:00:00]} 96. Ra3 {[%emt 0:00:11]} Bf4 {[%emt 0:00:18]} 97. Rb3+ {[%emt 0:00:05]} Ka8 {[%emt 0:00:48]} 98. Kb6 {[%emt 0:00:04]} Bh2 {[%emt 0:00:56]} 99. Ra3+ {[%emt 0:00:40]} Kb8 {[%emt 0:00:01]} 100. Rh3 {[%emt 0:00:02][%cal Rh3h8]} Bc7+ {[%emt 0:00:30]} 101. Kc6 {[%emt 0:00:10] Threatening mate with Rh8+.} Bf4 {[%emt 0:00:31] [#]} 102. Rh4 $1 {[%emt 0:00:29]} Bg3 {[%emt 0:00:37]} 103. Rh8+ {[%emt 0:00:05]} Ka7 {[%emt 0:00:02]} 104. Rh7+ {[%emt 0:00:11]} Ka8 {[%emt 0:00:38]} 105. Kb6 {[%emt 0:00:16]} Bf2+ {[%emt 0:00:38]} 106. Kc6 {[%emt 0:00:31]} Bg3 {[%emt 0:00:22]} 107. Rh8+ $2 {[%emt 0:00:25]} (107. Rh3 $18 Be5 108. Re3) 107... Bb8 $2 {[%emt 0:00:45][%mdl 8192]} (107... Ka7 $11) 108. Rh5 {[%emt 0:00:18] White is clearly winning.} Ba7 {[%emt 0:00:53]} 109. Kc7 {[%emt 0:00:37] White wants to mate with Rh8+.} Bb8+ {[%emt 0:00:26]} 110. Kc8 {[%emt 0:00:13]} Ba7 {[%emt 0:00:17]} 111. Rh8 {[%emt 0:00:02] White threatens Kc7+ and mate.} Bd4 {[%emt 0:00:31]} 112. Rh4 {[%emt 0:00:14]} (112. Rd8 $142 Bf2 113. Kc7+ Ka7 114. Kc6) 112... Ba7 {[%emt 0:00:30]} 113. Rh1 {[%emt 0:11:34][%mdl 32768] Weighted Error Value: White=0.10 (very precise) /Black=0.28 (precise) . An unexpected result.} 1/2-1/2